fUSD/lending_fUSD_20250513
["ID","MTS","AMOUNT","RATE_DAILY","PERIOD"]
[360895304,1747126246847,-140.35034119,0.00011991,2]
[360895305,1747126246864,-263.82659739,0.00011991,2]
[360895306,1747126246874,-505.32273432,0.00011991,2]
[360895307,1747126246883,-403.00202102,0.00011991,2]
[360895308,1747126246892,-408.15209841,0.00011991,2]
[360895309,1747126246902,-191.37329287,0.00011991,2]
[360895310,1747126246911,-401.71594829,0.00011991,2]
[360895311,1747126246920,-151.0,0.00011991,2]
[360895312,1747126246929,-196.143258,0.00011991,2]
[360895313,1747126246938,-196.143258,0.00011991,2]
[360895314,1747126246947,-484.84980705,0.00011991,2]
[360895315,1747126246956,-400.0,0.00011991,2]
[360895316,1747126246965,-261.47009056,0.00011991,2]
[360895317,1747126246975,-400.0,0.00011991,2]
[360895318,1747126246985,-334.79945607,0.00011991,2]
[360895319,1747126246995,-400.0,0.00011991,2]
[360895320,1747126247005,-506.78041442,0.00011991,2]
[360895321,1747126247014,-400.0,0.00011991,2]
[360895322,1747126247024,-348.52682146,0.00011991,2]
[360895323,1747126247033,-400.0,0.00011991,2]
[360895324,1747126247042,-7762.86,0.00011991,2]
[360895325,1747126247051,-400.0,0.00011991,2]
[360895326,1747126247059,-400.0,0.00011991,2]
[360895327,1747126247068,-156.89544266,0.00011991,2]
[360895328,1747126247077,-400.0,0.00011991,2]
[360895329,1747126247086,-459.3,0.00011991,2]
[360895330,1747126247095,-171.73442229,0.00011991,2]
[360895331,1747126247105,-400.0,0.00011991,2]
[360895332,1747126247115,-478.42,0.00011991,2]
[360895333,1747126247124,-400.0,0.00011991,2]
[360895334,1747126247133,-400.0,0.00011991,2]
[360895335,1747126247142,-400.0,0.00011991,2]
[360895336,1747126247151,-405.92855126,0.00011991,2]
[360895337,1747126247160,-542.12883422,0.00011991,2]
[360895338,1747126247169,-400.0,0.00011991,2]
[360895339,1747126247178,-400.0,0.00011991,2]
[360895340,1747126247187,-400.0,0.00011991,2]
[360895341,1747126247196,-400.0,0.00011991,2]
[360895342,1747126247205,-421.35088132,0.00011991,2]
[360895343,1747126247215,-408.89,0.00011991,2]
[360895344,1747126247224,-400.0,0.00011991,2]
[360895345,1747126247233,-400.0,0.00011991,2]
[360895346,1747126247242,-400.0,0.00011991,2]
[360895347,1747126247251,-482.64648158,0.00011991,2]
[360895348,1747126247260,-400.0,0.00011991,2]
[360895349,1747126247269,-400.0,0.00011991,2]
[360895350,1747126247279,-400.0,0.00011991,2]
[360895351,1747126247287,-400.0,0.00011991,2]
[360895352,1747126247296,-487.920969,0.00011991,2]
[360895353,1747126247305,-487.920969,0.00011991,2]
[360895354,1747126247315,-400.0,0.00011991,2]
[360895355,1747126247326,-487.920969,0.00011991,2]
[360895356,1747126247335,-487.920969,0.00011991,2]
[360895357,1747126247344,-400.0,0.00011991,2]
[360895358,1747126247355,-400.0,0.00011991,2]
[360895359,1747126247364,-400.0,0.00011991,2]
[360895360,1747126247374,-400.0,0.00011991,2]
[360895361,1747126247383,-400.0,0.00011991,2]
[360895362,1747126247392,-400.0,0.00011991,2]
[360895363,1747126247402,-151.0,0.00011991,2]
[360895364,1747126247412,-151.0,0.00011991,2]
[360895365,1747126247421,-400.0,0.00011991,2]
[360895366,1747126247431,-400.0,0.00011991,2]
[360895367,1747126247439,-400.0,0.00011991,2]
[360895368,1747126247448,-400.0,0.00011991,2]
[360895369,1747126247459,-400.0,0.00011991,2]
[360895370,1747126247468,-400.0,0.00011991,2]
[360895371,1747126247479,-400.0,0.00011991,2]
[360895372,1747126247489,-587.98,0.00011991,2]
[360895373,1747126247499,-400.0,0.00011991,2]
[360895374,1747126247508,-400.0,0.00011991,2]
[360895375,1747126247518,-400.0,0.00011991,2]
[360895376,1747126247527,-400.0,0.00011991,2]
[360895377,1747126247537,-1164.636021,0.00011991,2]
[360895378,1747126247548,-430.404212,0.00011991,2]
[360895379,1747126247557,-1164.636021,0.00011991,2]
[360895380,1747126247566,-341.38607999,0.00011991,2]
[360895381,1747126247579,-58.61392001,0.00011991,2]
[360895382,1747126247588,-430.404212,0.00011991,2]
[360895383,1747126247597,-400.0,0.00011991,2]
[360895384,1747126247606,-430.404212,0.00011991,2]
[360895385,1747126247615,-1164.636021,0.00011991,2]
[360895386,1747126247625,-430.404212,0.00011991,2]
[360895387,1747126247635,-1164.63603,0.00011991,2]
[360895388,1747126247821,-539.89,0.00011991,2]
[360895389,1747126247832,-400.0,0.00011991,2]
[360895390,1747126247842,-400.0,0.00011991,2]
[360895391,1747126247852,-400.0,0.00011991,2]
[360895392,1747126247862,-400.0,0.00011991,2]
[360895393,1747126247872,-151.0,0.00011991,2]
[360895394,1747126247881,-151.0,0.00011991,2]
[360895395,1747126247891,-227.442896,0.00011991,2]
[360895396,1747126247901,-400.0,0.00011991,2]
[360895397,1747126247910,-400.0,0.00011991,2]
[360895398,1747126247919,-400.0,0.00011991,2]
[360895399,1747126247928,-182.544407,0.00011991,2]
[360895400,1747126247939,-400.0,0.00011991,2]
[360895401,1747126247948,-30225.2916666,0.00011991,2]
[360895402,1747126247957,-400.0,0.00011991,2]
[360895403,1747126247966,-400.0,0.00011991,2]
[360895404,1747126247975,-400.0,0.00011991,2]
[360895405,1747126247985,-400.0,0.00011991,2]
[360895406,1747126247994,-400.0,0.00011991,2]
[360895407,1747126248003,-400.0,0.00011991,2]
[360895408,1747126248013,-400.0,0.00011991,2]
[360895409,1747126248022,-400.0,0.00011991,2]
[360895410,1747126248033,-459.24,0.00011991,2]
[360895411,1747126248043,-400.0,0.00011991,2]
[360895412,1747126248052,-500.0,0.00011991,2]
[360895413,1747126248062,-400.0,0.00011991,2]
[360895414,1747126248071,-3704.3893333,0.00011991,2]
[360895415,1747126248080,-400.0,0.00011991,2]
[360895416,1747126248090,-400.0,0.00011991,2]
[360895417,1747126248099,-400.0,0.00011991,2]
[360895418,1747126248109,-400.0,0.00011991,2]
[360895419,1747126248119,-400.0,0.00011991,2]
[360895420,1747126248128,-151.0,0.00011991,2]
[360895421,1747126248137,-400.0,0.00011991,2]
[360895422,1747126248146,-400.0,0.00011991,2]
[360895423,1747126248155,-400.0,0.00011991,2]
[360895424,1747126248165,-490.12,0.00011991,2]
[360895425,1747126248174,-474.11,0.00011991,2]
[360895426,1747126248183,-400.0,0.00011991,2]
[360895427,1747126248192,-401.71267006,0.00011991,2]
[360895428,1747126248202,-400.0,0.00011991,2]
[360895429,1747126248211,-400.0,0.00011991,2]
[360895430,1747126248220,-400.0,0.00011991,2]
[360895431,1747126248230,-151.0,0.00011991,2]
[360895432,1747126248239,-609.75,0.00011991,2]
[360895433,1747126248249,-400.0,0.00011991,2]
[360895434,1747126248259,-400.0,0.00011991,2]
[360895435,1747126248269,-400.0,0.00011991,2]
[360895436,1747126248278,-400.0,0.00011991,2]
[360895437,1747126248287,-400.0,0.00011991,2]
[360895438,1747126248297,-1873.24,0.00011991,2]
[360895439,1747126248306,-466.36,0.00011991,2]
[360895440,1747126248315,-400.0,0.00011991,2]
[360895441,1747126248326,-27969.1496666,0.00011991,2]
[360895442,1747126248335,-400.0,0.00011991,2]
[360895443,1747126248345,-400.0,0.00011991,2]
[360895444,1747126248357,-500.0,0.00011991,2]
[360895445,1747126248366,-931.15,0.00011991,2]
[360895446,1747126248377,-400.0,0.00011991,2]
[360895447,1747126248387,-400.0,0.00011991,2]
[360895448,1747126248398,-400.0,0.00011991,2]
[360895449,1747126248407,-25612.4139999,0.00011991,2]
[360895450,1747126248417,-400.0,0.00011991,2]
[360895451,1747126248427,-400.0,0.00011991,2]
[360895452,1747126248437,-821.92,0.00011991,2]
[360895453,1747126248447,-400.0,0.00011991,2]
[360895454,1747126248457,-596.08,0.00011991,2]
[360895455,1747126248467,-1399.35,0.00011991,2]
[360895456,1747126248476,-2786.607391,0.00011991,2]
[360895457,1747126248486,-400.0,0.00011991,2]
[360895458,1747126248495,-2786.60739,0.00011991,2]
[360895459,1747126248505,-400.0,0.00011991,2]
[360895460,1747126248515,-988.13,0.00011991,2]
[360895461,1747126248524,-3962.8728607,0.00011991,2]
[360895462,1747126248534,-400.0,0.00011991,2]
[360895463,1747126248550,-400.0,0.00011991,2]
[360895464,1747126248560,-1056.78,0.00011991,2]
[360895465,1747126248569,-400.0,0.00011991,2]
[360895466,1747126248579,-277.724891,0.00011991,2]
[360895467,1747126248590,-277.724895,0.00011991,2]
[360895468,1747126248600,-400.0,0.00011991,2]
[360895469,1747126248615,-423.29,0.00011991,2]
[360895470,1747126248624,-400.0,0.00011991,2]
[360895471,1747126248635,-25461.1229999,0.00011991,2]
[360895472,1747126248644,-151.0,0.00011991,2]
[360895473,1747126248654,-400.0,0.00011991,2]
[360895474,1747126248664,-400.0,0.00011991,2]
[360895475,1747126248673,-733.11,0.00011991,2]
[360895476,1747126248684,-1564.94,0.00011991,2]
[360895477,1747126248693,-151.0,0.00011991,2]
[360895478,1747126248703,-714.74,0.00011991,2]
[360895479,1747126248713,-756.45,0.00011991,2]
[360895480,1747126248723,-10196.139146,0.00011991,2]
[360895481,1747126248732,-587.9,0.00011991,2]
[360895482,1747126248742,-1493.38,0.00011991,2]
[360895483,1747126248751,-400.0,0.00011991,2]
[360895484,1747126248761,-400.0,0.00011991,2]
[360895485,1747126248771,-400.0,0.00011991,2]
[360895486,1747126248780,-356.6816586,0.00011991,2]
[360895487,1747126248790,-450.0,0.00011991,2]
[360895488,1747126248800,-400.0,0.00011991,2]
[360895489,1747126248810,-400.0,0.00011991,2]
[360895490,1747126248819,-400.0,0.00011991,2]
[360895491,1747126248829,-508.07,0.00011991,2]
[360895492,1747126248839,-400.0,0.00011991,2]
[360895493,1747126248849,-404.35453406,0.00011991,2]
[360895494,1747126248860,-400.0,0.00011991,2]
[360895495,1747126248870,-400.0,0.00011991,2]
[360895496,1747126248881,-561.14,0.00011991,2]
[360895497,1747126248890,-400.0,0.00011991,2]
[360895498,1747126248901,-1483.29,0.00011991,2]
[360895499,1747126248911,-400.0,0.00011991,2]
[360895500,1747126248920,-400.0,0.00011991,2]
[360895501,1747126248930,-513.90043932,0.00011991,2]
[360895502,1747126248940,-400.0,0.00011991,2]
[360895503,1747126248949,-400.0,0.00011991,2]
[360895504,1747126248959,-400.0,0.00011991,2]
[360895505,1747126248968,-348.2654516,0.00011991,2]
[360895506,1747126248994,-305.7745484,0.00011991,2]
[360895507,1747126249004,-400.0,0.00011991,2]
[360895508,1747126249014,-151.0,0.00011992,2]
[360895509,1747126249024,-151.0,0.00011992,2]
[360895510,1747126249034,-151.0,0.00011992,2]
[360895511,1747126249044,-143.39927338,0.00011992,2]
[360895512,1747126249056,-7.60072662,0.00011992,2]
[360895513,1747126249066,-151.0,0.00011992,2]
[360895514,1747126249075,-181.881794,0.00011992,2]
[360895515,1747126249084,-151.0,0.00011992,2]
[360895516,1747126249094,-151.0,0.00011992,2]
[360895517,1747126249104,-151.0,0.00011992,2]
[360895518,1747126249114,-151.0,0.00011992,2]
[360895519,1747126249123,-151.0,0.00011992,2]
[360895520,1747126249133,-151.0,0.00011992,2]
[360895521,1747126249143,-151.0,0.00011992,2]
[360895522,1747126249153,-151.0,0.00011992,2]
[360895523,1747126249163,-151.0,0.00011992,2]
[360895524,1747126249173,-151.0,0.00011992,2]
[360895525,1747126249183,-151.0,0.00011992,2]
[360895526,1747126249193,-107.13766765,0.00011992,2]
[360895527,1747126249205,-43.86233235,0.00011992,2]
[360895528,1747126249214,-151.0,0.00011992,2]
[360895529,1747126249224,-151.0,0.00011992,2]
[360895530,1747126249234,-151.0,0.00011992,2]
[360895531,1747126249244,-151.0,0.00011992,2]
[360895532,1747126249254,-151.0,0.00011992,2]
[360895533,1747126249264,-151.0,0.00011992,2]
[360895534,1747126249273,-151.0,0.00011992,2]
[360895535,1747126249283,-151.0,0.00011992,2]
[360895536,1747126249292,-151.0,0.00011992,2]
[360895537,1747126249302,-151.0,0.00011992,2]
[360895538,1747126249311,-264.363671,0.00011992,2]
[360895539,1747126249322,-172.964367,0.00011992,2]
[360895540,1747126249332,-172.964367,0.00011992,2]
[360895541,1747126249341,-172.964367,0.00011992,2]
[360895542,1747126249352,-172.964367,0.00011992,2]
[360895543,1747126249361,-163.139304,0.00011992,2]
[360895544,1747126249371,-163.139304,0.00011992,2]
[360895545,1747126249381,-163.139304,0.00011992,2]
[360895546,1747126249391,-163.139304,0.00011992,2]
[360895547,1747126249401,-172.964367,0.00011992,2]
[360895548,1747126249410,-163.139304,0.00011992,2]
[360895549,1747126249420,-163.139304,0.00011992,2]
[360895550,1747126249430,-163.139304,0.00011992,2]
[360895551,1747126249439,-172.964367,0.00011992,2]
[360895552,1747126249449,-163.139304,0.00011992,2]
[360895553,1747126249459,-172.964367,0.00011992,2]
[360895554,1747126249469,-172.964367,0.00011992,2]
[360895555,1747126249478,-151.0,0.00011992,2]
[360895556,1747126249487,-151.0,0.00011992,2]
[360895557,1747126249497,-151.0,0.00011992,2]
[360895558,1747126249507,-151.0,0.00011992,2]
[360895559,1747126249516,-151.0,0.00011992,2]
[360895560,1747126249526,-151.0,0.00011992,2]
[360895561,1747126249537,-151.0,0.00011992,2]
[360895562,1747126249548,-151.0,0.00011992,2]
[360895563,1747126249557,-151.0,0.00011992,2]
[360895564,1747126249567,-200.0,0.00011992,2]
[360895565,1747126249576,-151.0,0.00011992,2]
[360895566,1747126249586,-151.0,0.00011992,2]
[360895567,1747126249595,-151.0,0.00011992,2]
[360895568,1747126249604,-151.0,0.00011992,2]
[360895569,1747126249614,-170.110424,0.00011992,2]
[360895570,1747126249624,-170.110424,0.00011992,2]
[360895571,1747126249634,-119.40558009,0.00011992,2]
[360895572,1747126249646,-50.70484391,0.00011992,2]
[360895573,1747126249656,-170.110424,0.00011992,2]
[360895574,1747126249665,-170.110424,0.00011992,2]
[360895575,1747126249674,-170.110424,0.00011992,2]
[360895576,1747126249683,-170.110424,0.00011992,2]
[360895577,1747126249692,-170.110424,0.00011992,2]
[360895578,1747126249702,-166.012553,0.00011992,2]
[360895579,1747126249711,-166.012553,0.00011992,2]
[360895580,1747126249721,-166.012553,0.00011992,2]
[360895581,1747126249730,-166.012553,0.00011992,2]
[360895582,1747126249740,-166.012553,0.00011992,2]
[360895583,1747126249750,-166.012553,0.00011992,2]
[360895584,1747126249759,-166.012553,0.00011992,2]
[360895585,1747126249768,-166.012553,0.00011992,2]
[360895586,1747126249778,-166.012553,0.00011992,2]
[360895587,1747126249787,-166.012553,0.00011992,2]
[360895588,1747126249796,-166.012553,0.00011992,2]
[360895589,1747126249805,-166.012553,0.00011992,2]
[360895590,1747126249814,-166.012553,0.00011992,2]
[360895591,1747126249824,-166.012553,0.00011992,2]
[360895592,1747126249833,-166.012553,0.00011992,2]
[360895593,1747126249842,-166.012553,0.00011992,2]
[360895594,1747126249853,-151.0,0.00011992,2]
[360895595,1747126249862,-151.0,0.00011992,2]
[360895596,1747126249871,-151.0,0.00011992,2]
[360895597,1747126249881,-151.0,0.00011992,2]
[360895598,1747126249890,-54.45532131,0.00011992,2]
[360895599,1747126249902,-96.54467869,0.00011992,2]
[360895600,1747126249911,-151.0,0.00011992,2]
[360895601,1747126249921,-151.0,0.00011992,2]
[360895602,1747126249930,-300.468978,0.00011992,2]
[360895603,1747126249940,-151.0,0.00011992,2]
[360895604,1747126249950,-151.0,0.00011992,2]
[360895605,1747126249959,-151.0,0.00011992,2]
[360895606,1747126249969,-232.957707,0.00011992,2]
[360895607,1747126249979,-151.0,0.00011992,2]
[360895608,1747126249989,-151.0,0.00011992,2]
[360895609,1747126249999,-151.0,0.00011992,2]
[360895610,1747126250010,-151.0,0.00011992,2]
[360895611,1747126250021,-151.0,0.00011992,2]
[360895612,1747126250030,-151.0,0.00011992,2]
[360895613,1747126250041,-151.0,0.00011992,2]
[360895614,1747126250050,-48.72339553,0.00011992,2]
[360895615,1747126266114,-150.0,0.00011871,2]
[360895616,1747126266146,-44.01286359,0.00011872,2]
[360895617,1747126271013,-328.0258496,0.00011872,2]
[360895618,1747126283304,-127.96128681,0.00011872,2]
[360895619,1747126283334,-175.05893113,0.00011872,2]
[360895620,1747126298497,-300.0,0.00011871,2]
[360895621,1747126313325,-200.0,0.00011871,2]
[360895622,1747126313356,-84.77148748,0.00011871,2]
[360895623,1747126574678,3657.08,0.000118,2]
[360895624,1747126608033,154.92640093,0.00011,2]
[360895625,1747126629041,1881.94513181,0.00011767,2]
[360895626,1747126629355,1881.94513181,0.00011767,2]
[360895627,1747126775646,1000.0,0.00011659,2]
[360895628,1747126822346,328.62,9.087e-05,2]
[360895629,1747126822688,328.62,0.00011351,2]
[360895630,1747126908573,167.79,0.00010997,2]
[360895631,1747126955169,-215.11640775,0.00011863,2]
[360895632,1747126961563,-284.88359225,0.00011863,2]
[360895633,1747126961592,-15.11640775,0.00011863,2]
[360895634,1747126973295,-274.40376166,0.00011863,2]
[360895635,1747126989280,-150.0,0.00011862,2]
[360895636,1747126989519,-150.0,0.00011863,2]
[360895637,1747127043211,-175.59623834,0.00011862,2]
[360895638,1747127049089,2002.13034331,0.00011999,10]
[360895639,1747127108221,-235.02259193,0.00011857,2]
[360895640,1747127114666,1000.0,0.00010996,2]
[360895641,1747127185512,1549.47188495,0.00011,2]
[360895662,1747127310609,150.0,0.00011653,2]
[360895663,1747127315729,1000.0,0.00011436,2]
[360895664,1747127340452,150.0,0.00011728,2]
[360895665,1747127370081,150.0,0.00011844,2]
[360895666,1747127370135,150.0,0.00011844,2]
[360895667,1747127370366,150.0,0.00011786,2]
[360895668,1747127398511,150.0,0.0001177,2]
[360895669,1747127430100,150.0,0.00011718,2]
[360895670,1747127430149,150.0,0.00011828,2]
[360895671,1747127430298,150.0,0.00011808,2]
[360895672,1747127430345,150.0,0.00011823,2]
[360895677,1747127431869,-1100.43320275,0.00011851,2]
[360895678,1747127431984,-756.56679725,0.00011851,2]
[360895679,1747127431994,-150.0,0.00011854,2]
[360895680,1747127432005,-1200.0,0.00011854,2]
[360895681,1747127432015,-200.0,0.00011854,2]
[360895682,1747127432025,-250.0,0.00011854,2]
[360895683,1747127432037,-500.0,0.00011855,2]
[360895684,1747127432047,-500.0,0.00011855,2]
[360895685,1747127432056,-500.0,0.00011855,2]
[360895686,1747127432066,-500.0,0.00011855,2]
[360895687,1747127432080,-500.0,0.00011855,2]
[360895688,1747127432090,-500.0,0.00011855,2]
[360895689,1747127432099,-500.0,0.00011855,2]
[360895690,1747127432111,-500.0,0.00011855,2]
[360895691,1747127432121,-500.0,0.00011855,2]
[360895692,1747127432130,-500.0,0.00011855,2]
[360895693,1747127432140,-500.0,0.00011855,2]
[360895695,1747127432149,-500.0,0.00011855,2]
[360895697,1747127432158,-500.0,0.00011855,2]
[360895698,1747127432169,-209.1020793,0.00011855,2]
[360895699,1747127432179,-500.0,0.00011855,2]
[360895700,1747127432188,-500.0,0.00011855,2]
[360895702,1747127432197,-500.0,0.00011855,2]
[360895704,1747127432206,-500.0,0.00011855,2]
[360895705,1747127432215,-500.0,0.00011855,2]
[360895707,1747127432225,-500.0,0.00011855,2]
[360895709,1747127432234,-500.0,0.00011855,2]
[360895711,1747127432243,-500.0,0.00011855,2]
[360895713,1747127432253,-500.0,0.00011855,2]
[360895715,1747127432262,-500.0,0.00011855,2]
[360895717,1747127432271,-500.0,0.00011855,2]
[360895719,1747127432281,-500.0,0.00011855,2]
[360895721,1747127432291,-500.0,0.00011855,2]
[360895723,1747127432301,-500.0,0.00011855,2]
[360895725,1747127432311,-500.0,0.00011855,2]
[360895727,1747127432322,-500.0,0.00011855,2]
[360895729,1747127432332,-250.0,0.00011855,2]
[360895731,1747127432342,-200.0,0.00011856,2]
[360895733,1747127432351,-227.37120398,0.00011856,2]
[360895735,1747127432362,-195.60328497,0.00011856,2]
[360895737,1747127432372,-159.15984278,0.00011856,2]
[360895739,1747127432381,-150.0,0.00011857,2]
[360895741,1747127432391,-1000.0,0.00011862,2]
[360895743,1747127432402,-150.0,0.00011869,2]
[360895745,1747127432412,-207.4,0.00011881,2]
[360895747,1747127432422,-4483.32106311,0.00011887,2]
[360895750,1747127432435,-1885.3522062,0.00011887,2]
[360895778,1747127432701,-1924.76946057,0.00011887,2]
[360895780,1747127432714,-1687.21721161,0.00011887,2]
[360895787,1747127437868,-2655.75941585,0.00011887,2]
[360895788,1747127437877,-151.0,0.00011895,2]
[360895789,1747127437886,-151.0,0.00011895,2]
[360895790,1747127437896,-141.91345371,0.00011895,2]
[360895791,1747127437922,-9.08654629,0.00011895,2]
[360895792,1747127437932,-166.55221697,0.000119,2]
[360895793,1747127437941,-1000.0,0.00011906,2]
[360895794,1747127437950,-150.0,0.00011907,2]
[360895795,1747127437964,-798.0,0.00011924,2]
[360895796,1747127437974,-628.0,0.00011924,2]
[360895797,1747127437983,-267.03123674,0.00011924,2]
[360895798,1747127438026,-121.26876326,0.00011924,2]
[360895799,1747127438037,-262.5182597,0.00011939,2]
[360895800,1747127438048,-1000.0,0.00011939,2]
[360895801,1747127438058,-1927.18901946,0.0001197,2]
[360895802,1747127438068,-501.0,0.00011973,2]
[360895803,1747127438077,-500.0,0.00011973,2]
[360895804,1747127438089,-151.0,0.00011973,2]
[360895805,1747127438099,-428.57239655,0.00011975,2]
[360895927,1747127442998,-495.57473685,0.00011888,2]
[360895928,1747127443007,-502.0,0.00011973,2]
[360895929,1747127443016,-220.0,0.00011973,2]
[360895930,1747127443026,-879.0,0.00011977,2]
[360895931,1747127443035,-668.65185757,0.00011981,2]
[360895932,1747127443050,-398.68695884,0.00011986,2]
[360895933,1747127443059,-400.0,0.00011986,2]
[360895934,1747127443069,-500.0,0.00011986,2]
[360895935,1747127443079,-400.0,0.00011986,2]
[360895936,1747127443090,-17.68644674,0.00011986,2]
[360895937,1747127443105,-136.53009736,0.00011986,2]
[360895938,1747127443115,-400.0,0.00011986,2]
[360895939,1747127443125,-400.0,0.00011986,2]
[360895940,1747127443135,-100.96990264,0.00011986,2]
[360895965,1747127445996,-350.21449471,0.00011986,2]
[360895967,1747127446006,-400.0,0.00011986,2]
[360895969,1747127446015,-258.50828539,0.00011986,2]
[360895971,1747127446027,-141.49171461,0.00011986,2]
[360895972,1747127446038,-897.07905,0.00011986,2]
[360895973,1747127446048,-400.0,0.00011986,2]
[360895974,1747127446058,-163.858871,0.00011986,2]
[360895975,1747127446067,-174.952706,0.00011986,2]
[360895976,1747127446077,-386.590473,0.00011986,2]
[360895977,1747127446086,-2567.382578,0.00011986,2]
[360895978,1747127446097,-741.37,0.00011986,2]
[360895979,1747127446106,-400.0,0.00011986,2]
[360895980,1747127446117,-401.7270206,0.00011986,2]
[360895981,1747127446126,-525.91113607,0.00011986,2]
[360895982,1747127446136,-363.93523024,0.00011986,2]
[360895983,1747127446145,-1233.82,0.00011986,2]
[360895984,1747127446155,-553.33,0.00011986,2]
[360895985,1747127446164,-400.0,0.00011986,2]
[360895986,1747127446174,-400.0,0.00011986,2]
[360895987,1747127446184,-400.0,0.00011986,2]
[360895988,1747127446193,-400.0,0.00011986,2]
[360895989,1747127446203,-483.91,0.00011986,2]
[360895990,1747127446213,-400.0,0.00011986,2]
[360895991,1747127446222,-400.0,0.00011986,2]
[360895992,1747127446232,-400.0,0.00011986,2]
[360895993,1747127446241,-499.07,0.00011986,2]
[360895994,1747127446251,-400.0,0.00011986,2]
[360895995,1747127446261,-427.42,0.00011986,2]
[360895996,1747127446271,-400.0,0.00011986,2]
[360895997,1747127446281,-400.0,0.00011986,2]
[360895998,1747127446291,-400.0,0.00011986,2]
[360895999,1747127446300,-400.0,0.00011986,2]
[360896000,1747127446310,-716.62,0.00011986,2]
[360896001,1747127446320,-400.0,0.00011986,2]
[360896003,1747127446330,-450.0,0.00011986,2]
[360896004,1747127446340,-400.0,0.00011986,2]
[360896005,1747127446349,-668.89,0.00011986,2]
[360896006,1747127446359,-400.0,0.00011986,2]
[360896007,1747127446369,-416.97,0.00011986,2]
[360896008,1747127446379,-400.0,0.00011986,2]
[360896009,1747127446388,-905.8,0.00011986,2]
[360896010,1747127446398,-1450.93,0.00011986,2]
[360896011,1747127446407,-400.0,0.00011986,2]
[360896012,1747127446417,-400.0,0.00011986,2]
[360896013,1747127446428,-400.0,0.00011986,2]
[360896014,1747127446438,-400.0,0.00011986,2]
[360896015,1747127446447,-400.98724745,0.00011986,2]
[360896016,1747127446457,-400.0,0.00011986,2]
[360896017,1747127446467,-400.7154905,0.00011986,2]
[360896018,1747127446476,-400.0,0.00011986,2]
[360896019,1747127446486,-400.0,0.00011986,2]
[360896020,1747127446495,-1136.36,0.00011986,2]
[360896021,1747127446505,-400.0,0.00011986,2]
[360896022,1747127446514,-400.0,0.00011986,2]
[360896023,1747127446524,-400.0,0.00011986,2]
[360896024,1747127446533,-583.74,0.00011986,2]
[360896026,1747127446542,-1104.38,0.00011986,2]
[360896028,1747127446561,-400.0,0.00011986,2]
[360896029,1747127446572,-531.67,0.00011986,2]
[360896030,1747127446581,-503.3839593,0.00011986,2]
[360896031,1747127446591,-400.0,0.00011986,2]
[360896032,1747127446600,-494.47,0.00011986,2]
[360896033,1747127446610,-400.0,0.00011986,2]
[360896034,1747127446619,-400.0,0.00011986,2]
[360896035,1747127446629,-402.6787215,0.00011986,2]
[360896036,1747127446638,-1448.79,0.00011986,2]
[360896037,1747127446648,-400.0,0.00011986,2]
[360896038,1747127446658,-519.80058176,0.00011986,2]
[360896039,1747127446667,-400.0,0.00011986,2]